[Event "76th GEO-ch Women 2019"]
[Site "Tbilisi"]
[Date "2019.03.19"]
[Round "1.2"]
[White "Tsereteli, Tamar"]
[Black "Mikadze, Miranda"]
[Result "1/2-1/2"]
[ECO "B10"]
[WhiteElo "2315"]
[BlackElo "2266"]
[Annotator "NA"]
[PlyCount "66"]
[EventDate "2019.03.19"]
[EventType "swiss"]
[EventCountry "GEO"]
[SourceTitle "playchess.com"]
[Source "ChessBase"]
[SourceQuality "1"]
[TimeControl "40/5400+30:1800+30"]

{[%evp 8,65,0,-12,0,-42,-19,-39,-26,-24,-25,-23,-14,-6,0,-32,0,-7,8,-12,-10,-27,-20,-49,-19,-25,10,-6,0,-14,-12,0,0,-8,-14,-8,0,0,0,0,0,0,24,0,54,59,44,0,0,0,-5,-56,-8,-8,-4,-3,-4,-8,-10,0]} 1. e4 {[%emt 0:00:00]} c6 {[%emt 0:00:00]} 2. Nf3 {[%emt 0:00:13]} d5 {[%emt 0:00:00]} 3. Nc3 {[%emt 0:00:06]} Nf6 {[%emt 0:00:00]} (3... Bg4 4. h3 Bxf3 5. Qxf3 e6 6. g3 Nd7 7. Bg2 g6 8. Qe2 Ne7 9. d4 Bg7 10. Be3 O-O 11. O-O dxe4 12. Nxe4 Nf5 13. Rad1 Nxe3 14. Qxe3 {1-0 (66) Nakamura,H (2777)-Aronian,L (2767) chess.com INT 2018}) 4. exd5 {[%emt 0:01:05]} cxd5 {[%emt 0:00:22]} 5. Bb5+ {[%emt 0:00:43]} Bd7 {[%emt 0:00:44]} 6. Qe2 {[%emt 0:02:59] B11: Caro-Kann: Two Knights Variation} a6 {[%emt 0:01:43]} 7. Bxd7+ {[%emt 0:02:04]} Nbxd7 {[%emt 0:00:11]} 8. O-O {[%emt 0:05:42]} e6 {[%emt 0:00:53]} 9. d4 {[%emt 0:03:14]} Bb4 $146 {[%emt 0:04:18]} ({Predecessor:} 9... Be7 10. Bg5 O-O 11. Nd1 {½-½ (37) Protsenko,R (2263)-Georgescu,T (2403) Belgrade 2012}) 10. Nd1 {[%emt 0:03:42]} O-O {[%emt 0:00:29]} 11. Ne5 {[%emt 0:03:38]} Rc8 {[%emt 0:01:48]} 12. Bf4 {[%emt 0:09:12]} Re8 {[%emt 0:08:05]} 13. Ne3 {[%emt 0:04:31]} Nxe5 {[%emt 0:01:38]} 14. dxe5 {[%emt 0:01:53]} Nd7 {[%emt 0:00:59]} 15. Rfd1 {[%emt 0:03:50]} Nb6 {[%emt 0:11:55]} 16. Qh5 {[%emt 0:15:02]} f5 {[%emt 0:10:08]} 17. exf6 {[%emt 0:01:41]} Qxf6 {[%emt 0:00:05]} 18. Be5 {[%emt 0:01:37]} Qf7 {[%emt 0:00:07]} 19. Qxf7+ {[%emt 0:08:11]} Kxf7 {[%emt 0:00:22]} 20. c3 {[%emt 0:03:05]} Be7 {[%emt 0:11:31]} 21. f4 {[%emt 0:06:23]} Na4 {[%emt 0:07:51]} 22. Rab1 {[%emt 0:04:12]} b5 {[%emt 0:02:30]} 23. Bd4 {[%emt 0:08:51]} h5 {[%emt 0:06:04]} 24. Nc2 {[%emt 0:04:19]} g5 {[%emt 0:03:59]} 25. Rf1 {[%emt 0:00:51]} Kg6 {[%emt 0:00:56]} 26. Rbe1 {[%emt 0:00:53]} Nc5 {[%emt 0:02:32]} 27. f5+ {[%emt 0:02:33]} ({White should play} 27. fxg5 $16 Rf8 28. Rf3) 27... exf5 {[%emt 0:00:17]} 28. Re5 {[%emt 0:00:14]} f4 {[%emt 0:04:11]} 29. Rxd5 {[%emt 0:00:29]} (29. h4 $11) 29... Ne6 {[%emt 0:01:55]} (29... Nd3 $15) 30. Re1 {[%emt 0:01:28]} Nxd4 {[%emt 0:00:51]} 31. Nxd4 {[%emt 0:00:03]} Bf6 {[%emt 0:01:21]} 32. Rxe8 {[%emt 0:00:39]} Rxe8 {[%emt 0:00:08]} 33. Kf2 $11 {[%emt 0:00:31]} Bxd4+ {[%emt 0:03:42]} 1/2-1/2

[Event "76th GEO-ch Women 2019"]
[Site "Tbilisi"]
[Date "2019.03.19"]
[Round "1.4"]
[White "Purtseladze, Maka"]
[Black "Vakhania, Aleksandra"]
[Result "1-0"]
[ECO "D11"]
[WhiteElo "2282"]
[BlackElo "2175"]
[Annotator "NA"]
[PlyCount "99"]
[EventDate "2019.03.19"]
[EventType "swiss"]
[EventCountry "GEO"]
[SourceTitle "playchess.com"]
[Source "ChessBase"]
[SourceQuality "1"]
[TimeControl "40/5400+30:1800+30"]

1. d4 {[%emt 0:00:00]} d5 {[%emt 0:00:00]} 2. c4 {[%emt 0:00:00]} c6 {[%emt 0:00:00]} 3. Nf3 {[%emt 0:00:06]} Nf6 {[%emt 0:00:00]} 4. Qb3 {[%emt 0:00:40]} dxc4 {[%emt 0:03:22]} 5. Qxc4 {[%emt 0:00:04]} Bf5 {[%emt 0:04:51]} 6. g3 {[%emt 0:00:55]} Qd5 {[%emt 0:05:31] D23: Queen's Gambit Accepted: 3 Nf3 Nf6 sidelines} (6... e6 7. Bg2 Be7 8. O-O O-O 9. Nc3 Nbd7 10. Re1 Rc8 11. e4 Bg4 12. Qb3 b5 13. h3 Bxf3 14. Bxf3 e5 15. dxe5 Nxe5 16. Bg2 Bc5 17. Rd1 Qe7 {½-½ (42) Mamedyarov,S (2820)-Borisek,J (2578) Batumi 2018}) 7. Qb4 {[%emt 0:16:45]} c5 {[%emt 0:13:13]} 8. Qxc5 {[%emt 0:09:15]} Qxc5 {[%emt 0:15:23]} 9. dxc5 {[%emt 0:00:05]} e6 {[%emt 0:00:02]} 10. Nd4 $146 {[%emt 0:07:12]} ({Predecessor:} 10. Nc3 Bxc5 11. Bg2 Nc6 12. Nh4 Bg6 13. O-O Rc8 14. Nxg6 hxg6 {1-0 (53) Magalashvili,D (2455)-Mnatsakanian,E (2256) Jermuk 2010}) 10... Be4 {[%emt 0:11:28]} 11. f3 {[%emt 0:00:12]} Bc6 {[%emt 0:05:40]} 12. a3 {[%emt 0:44:29]} Bxc5 {[%emt 0:00:59]} 13. Nxc6 {[%emt 0:00:12]} (13. Be3 $11) 13... Nxc6 {[%emt 0:00:07]} ({Of course not} 13... bxc6 14. Nd2 $11) 14. b4 {[%emt 0:00:53]} Bd4 {[%emt 0:11:06]} 15. Ra2 {[%emt 0:00:04]} Rc8 {[%emt 0:00:15]} 16. Bd2 {[%emt 0:03:04]} Ne5 {[%emt 0:08:23]} 17. Bg2 {[%emt 0:04:32]} Nd5 {[%emt 0:06:56]} 18. e4 {[%emt 0:03:12]} Nb6 {[%emt 0:03:27]} 19. Ke2 {[%emt 0:00:42]} Ke7 {[%emt 0:01:38]} 20. b5 {[%emt 0:01:03]} Rhd8 {[%emt 0:00:24]} 21. f4 {[%emt 0:01:03]} Nec4 {[%emt 0:00:40]} 22. Bb4+ {[%emt 0:00:12]} Bc5 {[%emt 0:01:54]} 23. e5 {[%emt 0:01:46]} Nd5 $11 {[%emt 0:01:31]} 24. Rc1 {[%emt 0:01:20]} Bxb4 {[%emt 0:03:32]} 25. axb4 {[%emt 0:00:22]} Nce3 {[%emt 0:00:38]} 26. Rxc8 {[%emt 0:00:13]} Rxc8 {[%emt 0:00:04]} 27. Bxd5 {[%emt 0:02:53]} Nxd5 {[%emt 0:00:02]} 28. Rxa7 {[%emt 0:00:08]} Rc7 {[%emt 0:01:05]} 29. Na3 {[%emt 0:00:54]} Kd7 {[%emt 0:01:30]} 30. Kd3 {[%emt 0:01:26]} Nxb4+ {[%emt 0:00:20]} 31. Kd4 {[%emt 0:00:14]} b6 {[%emt 0:00:31]} 32. Ra4 {[%emt 0:01:23]} Nc2+ {[%emt 0:00:40]} 33. Nxc2 {[%emt 0:00:04]} Rxc2 {[%emt 0:00:05]} 34. Ra7+ {[%emt 0:00:52]} Rc7 {[%emt 0:00:30]} 35. Ra6 {[%emt 0:00:03]} Rb7 {[%emt 0:00:09]} 36. Ra8 {[%emt 0:00:15]} h5 {[%emt 0:00:14]} 37. Ke4 {[%emt 0:00:45]} g6 {[%emt 0:00:10]} 38. Kf3 {[%emt 0:00:17]} Rc7 {[%emt 0:01:59]} 39. Rf8 {[%emt 0:00:36]} Rc5 {[%emt 0:00:27]} 40. Rxf7+ {[%emt 0:00:00]} Ke8 {[%emt 0:00:00]} 41. Rf6 {[%emt 0:00:23]} Ke7 {[%emt 0:00:47]} 42. Rxg6 {[%emt 0:00:03]} Rxb5 {[%emt 0:00:04]} 43. Rg7+ {[%emt 0:00:06]} Kd8 {[%emt 0:00:39]} 44. Rh7 {[%emt 0:00:23]} Rd5 {[%emt 0:02:02]} 45. Rxh5 {[%emt 0:04:13]} b5 {[%emt 0:00:16]} 46. Rh7 {[%emt 0:00:16]} Kc8 {[%emt 0:00:28]} 47. Ra7 {[%emt 0:00:42]} b4 {[%emt 0:00:50]} 48. Ra2 {[%emt 0:00:34]} Kd7 {[%emt 0:02:15]} 49. Rb2 {[%emt 0:00:30]} Rd3+ {[%emt 0:02:58]} 50. Ke4 {[%emt 0:00:15]} 1-0

[Event "76th GEO-ch Women 2019"]
[Site "Tbilisi"]
[Date "2019.03.22"]
[Round "4.1"]
[White "Melia, Salome"]
[Black "Esadze, Tamari"]
[Result "1-0"]
[ECO "B99"]
[WhiteElo "2385"]
[BlackElo "2078"]
[Annotator "NA"]
[PlyCount "87"]
[EventDate "2019.03.19"]
[EventType "swiss"]
[EventCountry "GEO"]
[SourceTitle "playchess.com"]
[Source "ChessBase"]
[SourceQuality "1"]
[TimeControl "40/5400+30:1800+30"]

{[%evp 8,58,33,22,29,6,27,36,41,24,29,35,50,25,35,16,47,0,22,0,23,0,91,106,87,81,76,57,45,62,15,0,23,25,104,73,180,228,241,400,471,285,257,306,332,176,150,-125,110,57,29,-45,-44]} 1. e4 {[%emt 0:03:58]} c5 {[%emt 0:00:00]} 2. Nf3 {[%emt 0:00:05]} d6 {[%emt 0:00:00]} 3. d4 {[%emt 0:00:03]} cxd4 {[%emt 0:00:00]} 4. Nxd4 {[%emt 0:00:05]} Nf6 {[%emt 0:00:00]} 5. Nc3 {[%emt 0:00:05]} a6 {[%emt 0:00:02]} 6. Bg5 {[%emt 0:00:07]} e6 {[%emt 0:00:13]} 7. f4 {[%emt 0:00:27]} Be7 {[%emt 0:00:42]} 8. Qf3 {[%emt 0:01:05]} Qc7 {[%emt 0:00:22]} 9. O-O-O {[%emt 0:00:18]} Nbd7 {[%emt 0:00:09]} 10. g4 {[%emt 0:00:42]} b5 {[%emt 0:02:01]} 11. Bxf6 {[%emt 0:00:17]} Nxf6 {[%emt 0:00:38]} 12. g5 {[%emt 0:00:05]} Nd7 {[%emt 0:00:03]} 13. f5 $1 {[%emt 0:00:08]} O-O {[%emt 0:06:46] B99: Sicilian Najdorf: 6 Bg5 e6 7 f4 Be7 8 Qf3 Qc7 9 0-0-0 Nbd7} 14. Rg1 {[%emt 0:23:27]} ({Of course not} 14. f6 gxf6 15. gxf6 Nxf6 $17) (14. h4 b4 15. Nce2 Bb7 16. Kb1 Rac8 17. Bh3 e5 18. f6 exd4 19. fxe7 Rfe8 20. Nxd4 Rxe7 21. Nf5 Rxe4 22. Nxd6 Rd4 23. Qxf7+ Kh8 24. Nxc8 {1-0 (24) Sutovsky,E (2683)-Huschenbeth,N (2596) Douglas 2017}) 14... Ne5 {[%emt 0:19:59]} (14... b4 $1 $11 15. Nce2 e5) 15. Qg3 {[%emt 0:05:56]} b4 {[%emt 0:09:42]} 16. Nce2 {[%emt 0:00:26]} Bb7 $146 {[%emt 0:19:54]} ({Predecessor:} 16... exf5 17. exf5 f6 18. Bg2 Ra7 19. Bd5+ Kh8 20. g6 h6 21. Nf4 {1-0 (39) Kedziora,C-Woestmann,U Germany 1996}) 17. f6 {[%emt 0:06:41]} (17. Bg2 $16) 17... Bd8 {[%emt 0:00:53]} 18. fxg7 {[%emt 0:00:18]} Re8 {[%emt 0:00:41]} ({Don't take} 18... Kxg7 19. Qh3 $11) 19. Bg2 {[%emt 0:06:41]} Rc8 {[%emt 0:02:16]} 20. h4 {[%emt 0:01:49]} Nc4 {[%emt 0:10:25]} (20... Kxg7 $11 {keeps the balance.} 21. Nf4 Qc5) 21. Kb1 {[%emt 0:09:50]} e5 {[%emt 0:13:16]} (21... Qc5 $14) 22. Nf5 {[%emt 0:02:01]} Na3+ {[%emt 0:06:40]} 23. bxa3 {[%emt 0:00:55]} Qxc2+ {[%emt 0:00:03]} 24. Ka1 {[%emt 0:00:04]} Qxe2 {[%emt 0:00:56]} 25. Qb3 {[%emt 0:06:15]} ({But not} 25. Nxd6 $6 Bb6 $16) ({Less strong is} 25. Rxd6 Bxe4 26. Bxe4 Qxe4 $16) ({Resist} 25. axb4 $6 Bb6 $16) 25... d5 {[%emt 0:01:45]} 26. exd5 {[%emt 0:06:29]} ({Inferior is} 26. Qxb4 Ba5 $11) 26... Rc3 {[%emt 0:01:05]} 27. Qxb4 $2 {[%emt 0:03:10] [#]} (27. Qb1 $18 Rxa3 28. Rdf1) 27... Rc2 $2 {[%emt 0:00:23]} (27... Ba5 $1 $17 {[%cal Ra5b4] and life is bright.} 28. Qxb7 Rc7) 28. Qb3 {[%emt 0:05:03]} Ba5 $1 {[%emt 0:00:50]} 29. Kb1 {[%emt 0:04:47]} ({Better is} 29. Ng3 $11 Qc4 30. Ne4) 29... Rc3 $15 {[%emt 0:01:35]} 30. Qb2 {[%emt 0:02:48]} Qxb2+ {[%emt 0:01:18]} 31. Kxb2 {[%emt 0:00:01]} Rb8 {[%emt 0:00:24]} 32. Ka1 {[%emt 0:02:48]} Rc2 {[%emt 0:00:30]} 33. Rd3 {[%emt 0:03:54]} Bc3+ {[%emt 0:02:16]} 34. Rxc3 {[%emt 0:03:34]} Rxc3 {[%emt 0:00:02]} 35. Rb1 {[%emt 0:00:28]} Rc7 {[%emt 0:00:50]} 36. d6 {[%emt 0:01:02]} Rd7 {[%emt 0:00:04]} 37. Bc6 {[%emt 0:00:54]} Rdd8 {[%emt 0:01:10]} 38. Bxb7 {[%emt 0:00:16]} Rd7 {[%emt 0:00:17]} 39. Bxa6 {[%emt 0:00:52]} Rxb1+ {[%emt 0:00:08]} 40. Kxb1 {[%emt 0:00:00]} e4 {[%emt 0:00:00]} 41. Kc2 {[%emt 0:01:43]} e3 {[%emt 0:04:35]} 42. Kd3 {[%emt 0:01:00]} Ra7 {[%emt 0:00:40]} 43. Bc4 {[%emt 0:01:05]} Rxa3+ {[%emt 0:00:10]} 44. Bb3 {[%emt 0:00:48]} 1-0

[Event "76th GEO-ch Women 2019"]
[Site "Tbilisi"]
[Date "2019.03.22"]
[Round "4.2"]
[White "Vakhania, Aleksandra"]
[Black "Tsatsalashvili, Keti"]
[Result "0-1"]
[ECO "A05"]
[WhiteElo "2175"]
[BlackElo "2326"]
[Annotator "NA"]
[PlyCount "130"]
[EventDate "2019.03.19"]
[EventType "swiss"]
[EventCountry "GEO"]
[SourceTitle "playchess.com"]
[Source "ChessBase"]
[SourceQuality "1"]
[TimeControl "40/5400+30:1800+30"]

1. Nf3 {[%emt 0:03:16]} Nf6 {[%emt 0:00:00]} 2. g3 {[%emt 0:00:06]} c5 {[%emt 0:00:35]} 3. Bg2 {[%emt 0:00:21]} Nc6 {[%emt 0:00:22]} 4. O-O {[%emt 0:00:14]} d5 {[%emt 0:00:48]} 5. d4 {[%emt 0:00:28]} cxd4 {[%emt 0:00:28]} 6. Nxd4 {[%emt 0:00:06]} e5 {[%emt 0:09:04]} 7. Nxc6 {[%emt 0:01:23]} bxc6 {[%emt 0:00:03] [#]} 8. c4 $1 {[%emt 0:00:04]} Be7 {[%emt 0:02:23]} 9. Nc3 {[%emt 0:01:42]} Be6 {[%emt 0:01:59]} 10. Bg5 {[%emt 0:03:15] LiveBook: 8 Games} e4 {[%emt 0:00:56] D02: 1 d4 d5 2 Nf3 sidelines, including 2...Nf6 3 g3 and 2...Nf6 3 Bf4} 11. Qa4 {[%emt 0:06:48]} (11. cxd5 cxd5 12. Qa4+ Qd7 13. Rac1 Qxa4 14. Nxa4 O-O 15. Nc5 Bxc5 16. Rxc5 Nd7 17. Rc7 Rfb8 18. b3 {½-½ (29) Horvath,C (2518)-Socko,M (2437) Germany 2015}) 11... O-O {[%emt 0:01:53]} 12. Rad1 {[%emt 0:03:47]} Qe8 {[%emt 0:09:34]} 13. b4 $146 {[%emt 0:16:18]} ({White should try} 13. e3 $14) ({Predecessor:} 13. Bxf6 Bxf6 14. cxd5 cxd5 15. Qxe8 Rfxe8 16. Nxd5 Bxd5 17. Rxd5 Bxb2 18. Rb1 {1-0 (34) Frisk,E (2257)-Yashora,T (1715) Tromsoe 2014}) 13... Rd8 {[%emt 0:15:37]} 14. b5 {[%emt 0:07:10]} (14. Be3 $14) 14... cxb5 {[%emt 0:08:04]} 15. cxb5 {[%emt 0:00:49]} Rd7 {[%emt 0:02:15]} 16. Be3 {[%emt 0:03:49]} Qb8 {[%emt 0:01:13]} 17. Bd4 {[%emt 0:02:40]} Rc8 {[%emt 0:01:43]} 18. Qb3 {[%emt 0:00:18]} Rc4 {[%emt 0:02:51]} 19. a3 {[%emt 0:06:38]} Ne8 {[%emt 0:00:52]} 20. e3 {[%emt 0:00:56]} Qc8 {[%emt 0:12:03]} 21. Ne2 {[%emt 0:08:39]} Rb7 {[%emt 0:05:34]} 22. Nf4 {[%emt 0:03:53]} Nd6 {[%emt 0:01:08]} (22... a6 $5) 23. a4 {[%emt 0:01:33]} a6 {[%emt 0:02:42]} 24. b6 {[%emt 0:03:36]} a5 $1 {[%emt 0:00:33]} 25. Qb2 {[%emt 0:02:41]} Bf8 {[%emt 0:06:22]} 26. Rc1 {[%emt 0:00:43]} Qd7 {[%emt 0:02:38]} 27. Rxc4 {[%emt 0:14:14]} (27. Nxe6 $14 fxe6 28. f3) 27... Nxc4 {[%emt 0:00:07]} 28. Qc3 {[%emt 0:00:49]} Qxa4 {[%emt 0:01:53]} 29. Ra1 $11 {[%emt 0:03:18]} Qb4 {[%emt 0:03:35]} 30. Qc2 {[%emt 0:01:43]} Bc5 {[%emt 0:04:02]} 31. Rb1 {[%emt 0:01:48]} Na3 {[%emt 0:00:48]} 32. Qxc5 {[%emt 0:02:05]} Qxc5 {[%emt 0:02:52]} 33. Bxc5 {[%emt 0:00:06]} Nxb1 {[%emt 0:00:02]} 34. Bf1 {[%emt 0:00:32]} Rb8 {[%emt 0:00:48]} 35. Ba6 {[%emt 0:00:54]} Bc8 {[%emt 0:01:03]} 36. Bb5 {[%emt 0:00:35]} Bb7 {[%emt 0:00:23]} 37. Bd6 {[%emt 0:00:17]} Ra8 {[%emt 0:00:10]} 38. Ne2 {[%emt 0:00:34]} Nd2 {[%emt 0:00:56]} 39. Nc3 {[%emt 0:00:16]} Nc4 {[%emt 0:00:32]} 40. Bc7 {[%emt 0:00:00]} Nb2 {[%emt 0:00:00]} 41. Na4 {[%emt 0:01:14]} Nxa4 {[%emt 0:01:24]} 42. Bxa4 {[%emt 0:00:06]} f6 {[%emt 0:00:14]} 43. Kf1 {[%emt 0:00:11]} Kf7 {[%emt 0:00:54]} 44. Ke1 {[%emt 0:00:18]} Ke6 {[%emt 0:01:52]} 45. Kd2 {[%emt 0:03:27]} Rc8 {[%emt 0:04:43]} 46. Kc3 {[%emt 0:01:42]} Rxc7+ {[%emt 0:02:38]} 47. bxc7 {[%emt 0:00:06]} Kd6 {[%emt 0:00:05]} 48. Kd4 {[%emt 0:00:05]} Kxc7 {[%emt 0:00:56]} 49. Kc5 {[%emt 0:00:07]} f5 {[%emt 0:05:38]} 50. h4 {[%emt 0:01:27]} Bc8 {[%emt 0:05:24]} 51. Kxd5 {[%emt 0:05:22]} Bd7 {[%emt 0:00:12]} 52. Bc2 {[%emt 0:05:03]} Kb6 {[%emt 0:00:41]} 53. Kd6 {[%emt 0:02:22]} Bb5 {[%emt 0:00:41]} 54. Ke6 {[%emt 0:01:59]} a4 {[%emt 0:02:36]} 55. Kd5 {[%emt 0:13:12]} Ka5 {[%emt 0:00:34]} 56. Bxa4 {[%emt 0:02:00]} Bxa4 {[%emt 0:00:54]} 57. Ke5 {[%emt 0:00:41]} g6 {[%emt 0:04:52]} 58. h5 {[%emt 0:00:26]} gxh5 {[%emt 0:00:33]} 59. Kxf5 {[%emt 0:00:06]} Bc2 {[%emt 0:00:49]} 60. Kg5 {[%emt 0:01:01]} Bd1 {[%emt 0:00:36]} 61. Kf4 {[%emt 0:00:30]} Bf3 {[%emt 0:00:10]} 62. g4 {[%emt 0:00:19]} hxg4 {[%emt 0:00:25]} 63. Kg5 {[%emt 0:00:14]} Kb4 {[%emt 0:00:04]} 64. Kh6 {[%emt 0:00:08]} Kc3 {[%emt 0:00:04]} 65. Kxh7 {[%emt 0:00:04]} Kd2 {[%emt 0:00:02]} 0-1

[Event "76th GEO-ch Women 2019"]
[Site "Tbilisi"]
[Date "2019.03.22"]
[Round "4.3"]
[White "Arabidze, Meri"]
[Black "Khurtsilava, Inga"]
[Result "1-0"]
[ECO "E16"]
[WhiteElo "2392"]
[BlackElo "2234"]
[Annotator "NA"]
[PlyCount "95"]
[EventDate "2019.03.19"]
[EventType "swiss"]
[EventCountry "GEO"]
[SourceTitle "playchess.com"]
[Source "ChessBase"]
[SourceQuality "1"]
[TimeControl "40/5400+30:1800+30"]

{[%evp 8,66,24,21,29,20,25,20,32,33,28,41,27,34,30,48,47,46,52,55,47,52,60,59,64,66,60,67,75,71,69,62,72,75,71,55,62,37,125,119,104,122,155,133,144,150,155,135,145,147,150,136,269,279,352,389,446,495,478,507,484]} 1. d4 {[%emt 0:00:00]} Nf6 {[%emt 0:04:29]} 2. c4 {[%emt 0:00:00]} e6 {[%emt 0:00:06]} 3. Nf3 {[%emt 0:00:00]} Bb4+ {[%emt 0:01:41]} 4. Bd2 {[%emt 0:00:00]} Qe7 {[%emt 0:00:09]} 5. g3 {[%emt 0:00:12]} O-O {[%emt 0:00:47]} 6. Bg2 {[%emt 0:00:14]} Bxd2+ {[%emt 0:00:21]} 7. Qxd2 {[%emt 0:00:10]} d6 {[%emt 0:00:12]} 8. Nc3 {[%emt 0:00:44]} e5 {[%emt 0:01:05]} 9. O-O {[%emt 0:00:11]} Re8 {[%emt 0:00:07]} 10. e4 {[%emt 0:00:23]} Bg4 {[%emt 0:00:09]} 11. Ne1 {[%emt 0:00:36]} exd4 {[%emt 0:08:15] E11: Bogo-Indian} (11... Nc6 12. Nc2 Nxd4 13. Nxd4 exd4 14. Qxd4 Qe5 15. Qd3 Qh5 16. f3 Bh3 17. Qd4 Bxg2 18. Kxg2 Qe5 19. Rfd1 Qxd4 20. Rxd4 Nd7 21. Nd5 Rac8 22. Rad1 Kf8 23. Kf2 Ne5 24. Ne3 a5 25. Rc1 b6 26. Nd5 {½-½ (26) Mchedlishvili,M (2635)-Shanava,K (2521) Tbilisi 2008}) 12. Qxd4 {[%emt 0:00:16]} Nc6 {[%emt 0:00:10]} 13. Qd2 {[%emt 0:01:04]} Qd7 {[%emt 0:01:23]} 14. f3 {[%emt 0:02:11]} Bh3 {[%emt 0:02:01]} 15. Nc2 {[%emt 0:01:25]} Bxg2 {[%emt 0:01:04]} 16. Kxg2 {[%emt 0:00:10]} Ne5 {[%emt 0:14:51]} 17. Ne3 {[%emt 0:01:25]} Rad8 {[%emt 0:00:33] [#]} 18. b3 $146 {[%emt 0:03:21]} ({Predecessor:} 18. Rad1 h6 19. b3 {1-0 (36) Timoscenko,G (2520)-Zlochevskij,A (2435) Bozen 1998}) 18... Ng6 {[%emt 0:05:12]} 19. Rac1 {[%emt 0:04:41]} c6 {[%emt 0:07:54]} 20. Rcd1 {[%emt 0:05:23]} Qe6 {[%emt 0:01:44]} 21. Qd4 {[%emt 0:05:57]} a6 {[%emt 0:06:33]} 22. Rfe1 {[%emt 0:03:25]} Qe5 {[%emt 0:04:15]} (22... h5 $14) 23. Nf5 {[%emt 0:07:34]} Qa5 {[%emt 0:26:03]} 24. Re3 {[%emt 0:12:24]} Re6 {[%emt 0:02:33]} ({Better is} 24... h5) 25. c5 {[%emt 0:11:21]} d5 {[%emt 0:00:31]} 26. b4 {[%emt 0:00:25]} Qc7 {[%emt 0:00:57]} 27. exd5 {[%emt 0:01:58]} cxd5 {[%emt 0:00:07] [#]} 28. Ne4 $1 {[%emt 0:02:28]} Ne8 {[%emt 0:03:36]} 29. Ned6 {[%emt 0:05:02]} Nf6 {[%emt 0:00:05]} (29... Rxe3 $16 {keeps fighting.} 30. Qxe3 Nxd6 31. Nxd6 Qe7) 30. Rde1 {[%emt 0:12:32]} Rxe3 {[%emt 0:03:56]} 31. Rxe3 {[%emt 0:00:18]} ({Not} 31. Nxe3 Ne7 $16) (31. Qxe3 Qd7 $18) 31... Qd7 {[%emt 0:02:20] [#]} 32. Nh6+ $1 {[%emt 0:01:16]} Kf8 {[%emt 0:00:28]} 33. Nhxf7 {[%emt 0:00:24]} Rb8 $18 {[%emt 0:00:03]} 34. Ne5 {[%emt 0:07:42]} Nxe5 {[%emt 0:00:23]} 35. Qxe5 {[%emt 0:00:03]} Rd8 {[%emt 0:01:56]} 36. g4 {[%emt 0:02:30]} h6 {[%emt 0:00:47]} 37. a4 {[%emt 0:03:24]} Ra8 {[%emt 0:00:30]} 38. a5 {[%emt 0:00:53]} Rd8 {[%emt 0:00:18]} 39. h3 {[%emt 0:01:25]} Ra8 {[%emt 0:00:15]} 40. Kf2 {[%emt 0:00:00]} Rd8 {[%emt 0:00:00]} 41. h4 {[%emt 0:07:34]} Kg8 {[%emt 0:12:24]} 42. g5 {[%emt 0:04:50]} hxg5 {[%emt 0:04:16]} 43. hxg5 {[%emt 0:00:26]} Nh5 {[%emt 0:00:06]} 44. Qxd5+ {[%emt 0:03:25]} Kh7 {[%emt 0:00:16]} 45. Re6 {[%emt 0:06:28]} Nf4 {[%emt 0:08:58]} 46. g6+ {[%emt 0:01:29]} Kh6 {[%emt 0:00:06]} 47. Nf7+ {[%emt 0:00:12]} Qxf7 {[%emt 0:00:11]} 48. gxf7+ {[%emt 0:00:07]} 1-0